bitfinex-derivatives/quotes_ETHF0:USTF0_20250321
["timestamp","ask_amount","ask_price","bid_price","bid_amount"]
[1742573442703,1.02305,1955.9,1955.8,1.02304]
[1742573444003,7.34653,1956.1,1955.7,1.03076813]
[1742573444004,1.02309,1955.8,1955.7,1.03076813]
[1742573444301,1.02307,1955.9,1955.8,1.02305]
[1742573449309,1.02309,1955.8,1955.7,1.03076813]
[1742573449507,4.50609,1955.8,1955.7,0.00767813]
[1742573449697,4.50609,1955.8,1955.6,3.2078]
[1742573449698,5.32639161,1955.8,1955.2,10.4645]
[1742573449898,1.02321,1955.6,1955.5,1.02321]
[1742573450103,1.02321,1955.6,1955.5,2.40791]
[1742573450304,1.3088,1955.6,1955.5,2.40791]
[1742573451114,5.76435813,1955.7,1955.6,1.02319]
[1742573451408,0.00767813,1955.7,1955.6,5.58529]
[1742573452005,0.00767813,1955.7,1955.6,6.83869]
[1742573456114,1.03081813,1955.7,1955.6,3.63089]
[1742573456709,1.03081813,1955.7,1955.6,1.3543]
[1742573456903,2.35591813,1955.7,1955.6,1.3543]
[1742573458316,2.35591813,1955.7,1955.6,2.37749]
[1742573458712,2.35591813,1955.7,1955.6,1.3543]
[1742573460619,2.35591813,1955.7,1955.5,1.02323]
[1742573460620,1.02324,1955.5,1955.4,1.03093813]
[1742573460819,1.02324,1955.5,1955.4,2.32573813]
[1742573461223,2.33364,1955.5,1955.4,1.30247813]
[1742573461412,2.35663,1955.6,1955.4,2.32576813]
[1742573461612,2.6438,1955.6,1955.5,1.02324]
[1742573461925,2.6438,1955.6,1955.5,2.31804]
[1742573462118,2.35659,1955.6,1955.5,1.2948]
[1742573462316,1.3334,1955.6,1955.5,2.31804]
[1742573462511,0.00767813,1955.7,1955.6,1.02319]
[1742573462717,0.00767813,1955.7,1955.6,2.41089]
[1742573464120,2.27174,1956.1,1955.8,1.02309]
[1742573464322,2.33434,1956.1,1956.0,1.02298]
[1742573464724,2.33437,1956.1,1956.0,1.02298]
[1742573465914,1.02298,1956.0,1955.9,5.5486]
[1742573466322,2.33437,1956.1,1956.0,1.02298]
[1742573466516,2.33437,1956.1,1955.9,5.54859]
[1742573466517,1.02298,1956.0,1955.9,5.54859]
[1742573466821,2.33436,1956.1,1956.0,1.02298]
[1742573467422,1.3114,1956.1,1956.0,1.02298]
[1742573467621,2.33433,1956.1,1956.0,1.02298]
[1742573467927,1.3114,1956.1,1956.0,1.02298]
[1742573468329,2.33433,1956.1,1956.0,1.02298]
[1742573468627,1.3114,1956.1,1956.0,1.02298]
[1742573470825,2.33433,1956.1,1956.0,1.02298]
[1742573473527,1.02298,1956.0,1955.9,5.54859]
[1742573473733,1.02306,1955.9,1955.8,7.69283]
[1742573473934,2.25186,1955.9,1955.8,4.23083]
[1742573474225,1.02311,1955.8,1955.7,1.0231]
[1742573474426,2.35421,1955.8,1955.7,1.0231]
[1742573474827,1.02314,1955.7,1955.6,5.872]
[1742573475026,1.02314,1955.7,1955.6,1.02319]
[1742573475027,1.3459,1955.7,1955.6,1.02319]
[1742573475332,1.3459,1955.7,1955.6,4.23099]
[1742573475531,2.5231,1955.9,1955.8,1.02309]
[1742573475737,3.59773,1955.9,1955.8,1.02309]
[1742573476036,2.5747,1955.9,1955.8,1.02309]
[1742573476532,1.2288,1955.9,1955.8,1.02309]
[1742573477542,2.25183,1955.9,1955.8,1.02309]
[1742573477732,1.02309,1955.8,1955.7,2.37279]
[1742573477934,1.02318,1955.7,1955.6,1.02315]
[1742573478133,2.36388,1955.7,1955.6,1.02315]
[1742573478335,1.3407,1955.7,1955.6,1.02315]
[1742573478531,1.02314,1955.7,1955.6,1.02315]
[1742573478733,1.02323,1955.6,1955.5,1.0232]
[1742573479529,1.02323,1955.6,1955.5,2.347]
[1742573484037,1.02323,1955.6,1955.5,1.3238]
[1742573484240,1.02324,1955.5,1955.4,0.00767813]
[1742573484436,3.71724,1955.5,1955.4,0.00767813]
[1742573484833,3.71724,1955.5,1955.4,1.42977813]
[1742573485142,3.71724,1955.5,1955.4,2.45306813]
[1742573485337,3.71724,1955.5,1955.4,1.42977813]
[1742573485543,3.71724,1955.5,1955.4,0.00767813]
[1742573486133,1.02324,1955.5,1955.4,1.42977813]
[1742573486336,2.38184,1955.5,1955.4,2.45306813]
[1742573486642,2.38184,1955.5,1955.4,1.42977813]
[1742573487043,2.38184,1955.5,1955.4,2.45306813]
[1742573487244,1.3586,1955.5,1955.4,2.45306813]
[1742573487440,9.04664,1955.5,1955.4,0.00767813]
[1742573487747,10.04175858,1955.5,1955.4,0.00767813]
[1742573487935,9.95690289,1955.5,1955.4,0.00767813]
[1742573488136,10.04176403,1955.5,1955.4,0.00767813]
[1742573488333,1.02361,1954.8,1954.7,5.872]
[1742573488543,1.02361,1954.8,1954.7,1.02362]
[1742573489241,1.02366,1954.7,1954.6,2.25638]
[1742573489545,1.02366,1954.7,1954.6,2.26405813]
[1742573489847,1.02366,1954.7,1954.6,3.63095813]
[1742573490246,1.02366,1954.7,1954.6,0.00767813]
[1742573491334,4.23146,1954.7,1954.6,0.00767813]
[1742573491538,5.65425471,1954.7,1954.3,1.3296]
[1742573491835,7.3283,1954.6,1954.1,6.6658]
[1742573492040,1.02392,1954.2,1954.1,4.48198]
[1742573492348,1.02392,1954.2,1954.1,41.82398]
[1742573493141,1.02392,1954.2,1954.1,43.19358]
[1742573493744,1.02392,1954.2,1954.1,42.1696]
[1742573493943,2.26742,1954.2,1954.1,42.1696]
[1742573494443,3.58772,1954.2,1954.1,42.1696]
[1742573495847,1.2435,1954.2,1954.1,43.19358]
[1742573496147,2.26742,1954.2,1954.1,43.19358]
[1742573496344,1.2435,1954.2,1954.1,43.19358]
[1742573496543,3.8796,1954.6,1954.1,45.3774]
[1742573496544,1.3203,1954.6,1954.1,45.3774]
[1742573496843,1.3203,1954.6,1954.5,1.02377]
[1742573497050,2.35011,1954.6,1954.4,1.02378]
[1742573497237,2.35011,1954.6,1954.4,3.69078]
[1742573497238,1.02377,1954.5,1954.4,3.69078]
[1742573497442,1.3264,1954.6,1954.4,3.69078]
[1742573497642,1.02377,1954.5,1954.4,1.2943]
[1742573497846,1.02382,1954.4,1954.3,3.2078]
[1742573498041,2.35022,1954.4,1954.2,4.48292]
[1742573498345,2.35022,1954.4,1954.3,1.02387]
[1742573499548,2.35022,1954.4,1954.3,4.23167]
[1742573499743,2.35022,1954.4,1954.3,1.02387]
[1742573500147,2.35022,1954.4,1954.3,4.23167]
[1742573500545,1.02382,1954.4,1954.3,4.23167]
[1742573500853,7.35379,1954.7,1954.4,1.02377]
[1742573500854,1.02379,1954.5,1954.4,1.02377]
[1742573502050,1.02382,1954.4,1954.3,1.02383]
[1742573502248,0.00767813,1954.9,1954.6,1.02371]
[1742573502453,1.02361,1954.8,1954.7,5.58872]
[1742573502857,2.32574813,1954.9,1954.8,1.02361]
[1742573503051,1.30217813,1954.9,1954.8,1.02361]
[1742573503751,2.32573813,1954.9,1954.8,1.02361]
[1742573503951,1.30217813,1954.9,1954.8,1.02361]
[1742573507853,2.32573813,1954.9,1954.8,1.02361]
[1742573508052,1.30217813,1954.9,1954.7,4.5651]
[1742573508256,1.03127813,1954.9,1954.8,1.02361]
[1742573508754,0.00767813,1954.9,1954.8,1.02361]
[1742573509455,0.00767813,1954.9,1954.8,2.39831]
[1742573510057,1.02342,1955.2,1954.8,2.39831]
[1742573510262,1.02342,1955.2,1955.1,1.02345]
[1742573511751,11.73325,1956.1,1955.1,3.2078]
[1742573512062,8.5358,1956.0,1955.4,5.76599]
[1742573512353,1.02309,1955.8,1955.6,1.02314]
[1742573512554,1.02309,1955.8,1955.7,2.42504]
[1742573512961,1.02305,1955.9,1955.8,1.02309]
[1742573513157,1.02303,1955.9,1955.8,2.42497]
[1742573513957,7.00133,1956.0,1955.9,1.02303]
[1742573514164,7.00133,1956.0,1955.9,2.42493]
[1742573514369,7.00133,1956.0,1955.9,1.4019]
[1742573515163,1.02314,1955.7,1955.6,1.24567813]
[1742573515364,1.02314,1955.7,1955.6,2.65267813]
[1742573515960,1.02314,1955.7,1955.6,2.43786813]
[1742573516164,1.02312,1955.8,1955.7,1.02312]
[1742573517457,1.02312,1955.8,1955.6,1.41467813]
[1742573517458,1.02308,1955.9,1955.8,1.02308]
[1742573518762,1.02309,1955.8,1955.7,1.0231]
[1742573518972,1.02309,1955.8,1955.7,2.4301]
[1742573519560,1.02309,1955.8,1955.7,1.407]
[1742573520157,1.02314,1955.7,1955.6,0.00767813]
[1742573520359,2.44774,1955.7,1955.6,1.35927813]
[1742573521271,2.44774,1955.7,1955.6,2.38246813]
[1742573521460,1.4246,1955.7,1955.6,2.38246813]
[1742573521661,1.02309,1955.8,1955.7,1.02313]
[1742573521969,1.02309,1955.8,1955.7,2.37473]
[1742573522162,2.44769,1955.8,1955.7,2.37473]
[1742573522669,2.44769,1955.8,1955.7,1.3516]
[1742573524965,1.4246,1955.8,1955.6,0.00767813]
[1742573525166,2.43204,1955.7,1955.6,0.00767813]
[1742573525367,1.4089,1955.7,1955.6,1.03086813]
[1742573525767,4.48012,1955.8,1955.7,1.02314]
[1742573525966,4.48012,1955.8,1955.7,2.36554]
[1742573526170,5.88902,1955.8,1955.7,2.36554]
[1742573526573,1.2367,1956.0,1955.9,1.02303]
[1742573526874,1.02295,1956.1,1956.0,1.02294]
[1742573527071,1.02295,1956.1,1956.0,2.41754]
[1742573527274,2.36532,1956.2,1956.1,1.02293]
[1742573527575,2.36532,1956.2,1956.1,2.41753]
[1742573527776,2.36532,1956.2,1956.1,1.3946]
[1742573528275,2.36532,1956.2,1956.1,2.41753]
[1742573528478,3.50762,1956.3,1956.2,1.02288]
[1742573528682,3.50762,1956.3,1956.2,2.41748]
[1742573528871,1.2349,1956.3,1956.2,2.41748]
[1742573529179,12.26166815,1956.7,1956.4,1.02277]
[1742573529180,4.8016,1956.6,1956.4,1.02277]
[1742573529381,7.16667,1956.6,1956.5,1.3946]
[1742573529875,6.144,1956.6,1956.5,2.41732]
[1742573530175,7.16667,1956.6,1956.5,1.3946]
[1742573531174,3.70967,1956.6,1956.5,2.41732]
[1742573531476,1.02248,1957.0,1956.8,1.02252]
[1742573531678,2.6363,1957.1,1957.0,1.02246]
[1742573531869,1.3016,1957.1,1957.0,1.02246]
[1742573532179,1.3016,1957.1,1957.0,4.23026]
[1742573532369,1.3016,1957.1,1956.9,2.31864813]
[1742573532571,1.3016,1957.1,1957.0,1.02246]
[1742573532875,1.3016,1957.1,1957.0,3.63696]
[1742573533178,23.80510759,1957.5,1957.0,49.2865]
[1742573533372,23.80510759,1957.5,1957.4,4.23005]
[1742573533972,23.80510759,1957.5,1957.4,5.57525]
[1742573534171,2.55501,1957.9,1957.4,5.57525]
[1742573534172,2.5547,1958.2,1957.6,1.02214]
[1742573534375,1.02204,1957.8,1957.7,1.3452]
[1742573534587,2.40671,1957.9,1957.7,5.57505]
[1742573534787,1.2634,1958.0,1957.7,1.3452]
[1742573534976,1.02204,1957.8,1957.7,1.3452]
[1742573535178,1.02214,1957.6,1957.4,3.455]
[1742573535384,1.02223,1957.5,1957.3,4.23008]
[1742573535679,1.02225,1957.4,1957.3,1.02228]
[1742573535879,1.02227,1957.4,1957.2,1.02232]
[1742573536075,1.02227,1957.4,1957.1,7.9351]
[1742573536276,1.3847,1957.7,1957.3,1.02228]
[1742573536476,1.3847,1957.7,1957.3,4.23008]
[1742573536676,1.0222,1957.5,1957.4,1.4001]
[1742573537886,1.02235,1957.2,1957.1,7.9351]
[1742573538089,1.02235,1957.2,1957.1,1.4001]
[1742573539083,3.455,1957.2,1956.9,0.00767813]
[1742573539296,4.47737,1957.2,1957.0,1.02243]
[1742573539498,4.7693,1957.2,1957.1,1.3503]
[1742573539798,2.33665,1957.2,1957.1,1.3503]
[1742573540400,1.3143,1957.2,1957.1,2.37271]
[1742573540699,1.02235,1957.2,1957.1,1.3503]
[1742573541193,1.02245,1957.1,1956.9,0.00767813]
[1742573541492,1.02246,1957.0,1956.9,1.35797813]
[1742573541695,1.02246,1957.0,1956.9,0.00767813]
[1742573541897,8.93636,1957.0,1956.9,0.00767813]
[1742573542091,9.1859,1957.0,1956.5,1.3781]
[1742573542291,1.02264,1956.7,1956.5,2.4008]
[1742573542491,3.454,1956.8,1956.6,1.02266]
[1742573542697,1.3362,1956.7,1956.6,1.02266]
[1742573543393,1.02268,1956.6,1956.5,0.00767813]
[1742573544698,7.68548,1956.6,1956.5,0.00767813]
[1742573546101,9.07998,1956.6,1956.5,0.00767813]
[1742573546296,4.8495,1956.6,1956.5,1.03039813]
[1742573546500,0.00767813,1956.8,1956.7,1.02261]
[1742573547099,4.47738,1957.2,1957.0,1.02242]
[1742573547403,3.6811,1957.3,1957.1,41.82238]
[1742573547597,2.6588,1957.3,1957.2,1.02235]
[1742573547803,1.02235,1957.2,1957.1,41.82237]
[1742573548003,1.02235,1957.2,1957.1,40.8]
[1742573548404,2.41805,1957.2,1957.1,40.8]
[1742573548705,1.3957,1957.2,1957.1,41.82241]
[1742573548903,2.41805,1957.2,1957.1,40.8]
[1742573549793,1.3957,1957.2,1957.1,40.8]
[1742573549993,2.41805,1957.2,1957.1,40.8]
[1742573550199,1.3957,1957.2,1957.1,41.82241]
[1742573550504,2.41805,1957.2,1957.1,41.82241]
[1742573550704,1.3957,1957.2,1957.1,41.82241]
[1742573551001,2.41805,1957.2,1957.1,41.82241]
[1742573551403,1.02241,1957.1,1957.0,1.02243]
[1742573551602,1.3311,1957.1,1957.0,1.02243]
[1742573552004,1.3311,1957.1,1957.0,41.82243]
[1742573552394,1.3311,1957.1,1957.0,1.02246]
[1742573552902,2.35351,1957.1,1956.9,45.03027]
[1742573553106,2.35351,1957.1,1957.0,1.02246]
[1742573553297,1.3311,1957.1,1957.0,1.02246]
[1742573553497,2.35351,1957.1,1957.0,1.02246]
[1742573553697,1.3311,1957.1,1957.0,1.02246]
[1742573554899,1.2643,1957.3,1956.9,49.12032]
[1742573555104,3.64492,1957.3,1957.2,1.02235]
[1742573555700,2.28662,1957.3,1957.2,1.02235]
[1742573555898,1.2643,1957.3,1957.2,1.02235]
[1742573557498,1.3583,1957.4,1957.3,1.0223]
[1742573557694,1.413,1957.5,1957.4,1.02225]
[1742573557894,3.2078,1957.6,1957.5,1.0222]
[1742573558310,2.6413,1957.7,1957.6,1.02214]
[1742573558804,3.454,1957.8,1957.7,1.02209]
[1742573559013,1.413,1957.9,1957.7,1.02206]
[1742573559302,4.47596,1958.0,1957.7,3.2078]
[1742573559494,1.413,1958.0,1957.8,1.3902]
[1742573559699,1.02199,1957.9,1957.8,2.41224]
[1742573560007,2.43498,1958.0,1957.9,1.02199]
[1742573560309,1.413,1958.0,1957.9,2.36619]
[1742573560516,5.855,1958.2,1958.0,1.0219]
[1742573560802,5.855,1958.2,1957.9,1.3442]
[1742573560803,8.28186,1958.2,1957.9,1.3442]
[1742573561009,6.94258,1958.2,1958.0,1.0219]
[1742573561309,6.94258,1958.2,1958.1,2.36608]
[1742573561910,6.94258,1958.2,1958.1,1.3442]
[1742573562308,1.02177,1958.4,1958.1,1.3442]
[1742573562605,1.228,1958.5,1958.4,1.02173]
[1742573562811,2.633,1958.5,1958.2,3.2078]
[1742573563009,1.02173,1958.4,1958.3,1.3442]
[1742573563207,2.33353,1958.4,1958.3,1.3442]
[1742573564612,1.02186,1958.2,1957.9,6.6618]
[1742573564809,7.07394,1958.4,1958.0,1.36]
[1742573564810,1.3118,1958.4,1958.0,1.36]
[1742573565109,3.86615,1958.4,1958.0,2.38191]
[1742573565310,3.86615,1958.4,1958.0,1.36]
[1742573565311,1.02188,1958.1,1958.0,1.36]
[1742573565807,1.02204,1957.8,1957.7,11.43408]
[1742573566008,2.55481,1958.1,1957.6,48.48397813]
[1742573566009,1.02209,1957.7,1957.6,0.00767813]
[1742573566911,4.49309,1957.7,1957.6,0.00767813]
[1742573567106,7.70089,1957.7,1957.6,0.00767813]
[1742573567416,4.49309,1957.7,1957.6,0.00767813]
[1742573567910,4.49909,1957.7,1957.6,0.00767813]
[1742573568106,1.3983,1957.8,1957.6,0.00767813]
[1742573568311,2.42037,1957.8,1957.6,1.02980813]
[1742573568513,1.02207,1957.8,1957.7,1.3392]
[1742573568714,1.02204,1957.8,1957.7,1.3392]
[1742573569106,2.40594,1957.8,1957.7,1.3392]
[1742573569419,1.02209,1957.7,1957.6,0.00767813]
[1742573569711,9.09479,1957.7,1957.6,0.00767813]
[1742573570501,5.88699,1957.7,1957.6,0.00767813]
[1742573570905,5.88699,1957.7,1957.6,1.38707813]
[1742573571101,3.68045,1958.0,1957.6,5.61701813]
[1742573571301,2.34096,1958.0,1957.8,1.02204]
[1742573571517,11.73028,1958.3,1957.9,3.2078]
[1742573571518,1.02181,1958.3,1957.9,3.2078]
[1742573571814,1.02183,1958.2,1958.0,40.8]
[1742573572004,10.0903,1958.5,1958.1,2.40126]
[1742573572005,1.02182,1958.3,1958.1,2.40126]
[1742573572206,1.02182,1958.3,1958.2,1.3967]
[1742573573503,2.34282,1958.3,1958.2,1.3967]
[1742573574713,1.321,1958.3,1958.2,1.3967]
[1742573574911,1.321,1958.3,1958.2,2.41853]
[1742573575112,2.34278,1958.3,1958.2,2.41853]
[1742573575313,2.34278,1958.3,1958.2,1.3967]
[1742573575705,1.321,1958.3,1958.2,2.41853]
[1742573576209,2.34278,1958.3,1958.2,1.3967]
[1742573576419,3.2078,1958.8,1958.3,2.55446]
[1742573576607,1.3615,1958.7,1958.4,1.2911]
[1742573576912,1.02164,1958.6,1958.4,1.2911]
[1742573577114,3.2078,1958.9,1958.4,1.2911]
[1742573577310,4.49953,1958.8,1958.5,1.02163]
[1742573577504,1.3615,1958.7,1958.6,2.31272]
[1742573578207,2.38307,1958.7,1958.6,1.2911]
[1742573578605,4.5693,1958.7,1958.3,3.48]
[1742573578810,4.5693,1958.7,1958.4,1.2944]
[1742573578811,1.02169,1958.5,1958.4,1.2944]
[1742573579117,4.5693,1958.7,1958.6,1.02162]
[1742573579310,1.3615,1958.7,1958.6,1.02162]
[1742573579715,1.02148,1958.9,1958.7,1.02156]
[1742573580014,2.38258,1958.9,1958.8,1.2944]
[1742573580413,1.3611,1958.9,1958.8,2.31592]
[1742573580610,4.8531,1958.9,1958.8,1.2944]
[1742573580810,1.3611,1958.9,1958.8,2.31592]
[1742573581425,4.7233,1959.0,1958.8,2.31588]
[1742573581614,4.7233,1959.0,1958.9,1.4233]
[1742573581615,5.74472,1959.0,1958.9,1.4233]
[1742573582114,5.74472,1959.0,1958.7,1.02153]
[1742573582115,4.7233,1959.0,1958.7,1.02153]
[1742573582319,4.7233,1959.0,1958.6,0.00765834]
[1742573582320,1.3143,1958.9,1958.8,1.02151]
[1742573583228,1.2323,1959.0,1958.9,1.02147]
[1742573583519,2.33566,1959.1,1958.9,2.44474]
[1742573583722,3.66026,1959.1,1958.9,2.44474]
[1742573583921,3.66028,1959.1,1958.9,2.44474]
[1742573584519,2.6389,1959.1,1959.0,1.02141]
[1742573585024,3.66026,1959.1,1958.9,2.44473]
[1742573585215,3.66026,1959.1,1958.9,2.44475]
[1742573585414,1.02141,1959.0,1958.9,1.4233]
[1742573585616,1.3663,1959.0,1958.9,1.4233]
[1742573585816,2.38771,1959.0,1958.9,1.4233]
[1742573586216,1.02149,1958.9,1958.7,4.50854]
[1742573586413,1.02149,1958.9,1958.8,1.2965]
[1742573586815,1.02153,1958.8,1958.6,5.87965834]
[1742573587022,1.02153,1958.8,1958.6,11.40554834]
[1742573587222,1.02153,1958.8,1958.7,1.2965]
[1742573587925,6.6888,1959.0,1958.7,2.31804]
[1742573588127,1.02152,1958.8,1958.7,2.31804]
[1742573588424,1.0215,1958.9,1958.7,1.2965]
[1742573588725,1.02152,1958.8,1958.7,2.31805]
[1742573588924,7.71025,1959.0,1958.7,1.2965]
[1742573589113,1.02147,1958.9,1958.8,1.363]
[1742573590519,1.02147,1958.9,1958.8,2.38452]
[1742573590722,1.02146,1959.0,1958.8,1.363]
[1742573590925,1.3246,1959.1,1959.0,1.02141]
[1742573591127,2.34596,1959.1,1958.9,2.37002]
[1742573591625,2.34596,1959.1,1959.0,1.3486]
[1742573592230,2.34596,1959.1,1959.0,2.37001]
[1742573592923,2.34596,1959.1,1959.0,1.3486]
[1742573594926,7.08582,1959.1,1958.9,1.3419]
[1742573595327,1.02141,1959.0,1958.9,1.3419]
[1742573596326,2.34598,1959.1,1958.9,1.3419]
[1742573596529,1.02141,1959.0,1958.9,1.3419]
[1742573596926,1.02141,1959.0,1958.9,2.36337]
[1742573597126,1.02141,1959.0,1958.9,1.3419]
[1742573597533,1.02141,1959.0,1958.9,2.36337]
[1742573598635,1.02141,1959.0,1958.9,1.3419]
[1742573598833,1.02141,1959.0,1958.9,2.36337]
[1742573599034,1.02141,1959.0,1958.9,1.3419]
[1742573599225,1.02141,1959.0,1958.9,2.36337]
[1742573599627,2.35061,1959.0,1958.9,2.36337]
[1742573599927,1.3246,1959.1,1959.0,1.02141]
[1742573600129,4.7862,1959.3,1959.0,4.5646]
[1742573600328,4.7862,1959.3,1959.2,1.02131]
[1742573600632,3.2078,1959.6,1959.3,1.02126]
[1742573600835,6.48778077,1959.7,1959.6,1.0211]
[1742573601035,7.50883077,1959.7,1959.5,1.02111]
[1742573601229,8.83803077,1959.7,1959.6,1.3568]
[1742573601534,3.462,1960.0,1959.6,4.5646]
[1742573601840,1.02103,1959.8,1959.7,40.8]
[1742573602133,1.02105,1959.7,1959.6,0.00765834]
[1742573602331,3.65165,1959.7,1959.6,0.00765834]
[1742573602727,2.6306,1959.7,1959.6,1.02875834]
[1742573602934,1.02101,1959.8,1959.6,1.30205834]
[1742573603131,3.46,1959.9,1959.6,1.30205834]
[1742573603431,1.02105,1959.7,1959.6,1.30205834]
[1742573603733,2.40592,1959.8,1959.7,1.02105]
[1742573604035,1.02075,1960.3,1959.7,8.51156]
[1742573604236,2.5516,1960.5,1959.9,3.2078]
[1742573604528,2.5516,1960.5,1959.7,7.95208455]
[1742573604529,1.021,1959.8,1959.7,0.64612455]
[1742573604727,1.02098,1959.9,1959.7,1.66715455]
[1742573604927,1.02098,1959.9,1959.8,40.8]
[1742573605332,1.02098,1959.9,1959.7,1.02103]
[1742573605533,9.22803,1960.1,1959.6,4.49572834]
[1742573605733,1.02102,1959.8,1959.7,1.3531]
[1742573605930,2.55172,1960.4,1959.7,4.5609]
[1742573606130,5.7894,1960.4,1959.7,4.5609]
[1742573606333,4.7729,1960.4,1960.3,1.02074]
[1742573606529,5.79359,1960.4,1960.2,1.02076]
[1742573606841,1.2949,1960.4,1960.3,1.3531]
[1742573607039,2.31558,1960.4,1960.3,1.3531]
[1742573607231,1.02086,1960.1,1959.8,4.4782]
[1742573607538,1.02086,1960.1,1960.0,1.3531]
[1742573607839,1.02095,1959.9,1959.7,4.49801]
[1742573608134,1.02095,1959.9,1959.8,1.021]
[1742573608338,1.02091,1960.0,1959.8,1.021]
[1742573608538,2.30781,1960.0,1959.9,2.31855]
[1742573608836,2.30781,1960.0,1959.9,1.2976]
[1742573609039,1.02095,1959.9,1959.7,1.02101]
[1742573609238,5.78583,1960.0,1959.8,1.021]
[1742573609435,2.30783,1960.0,1959.8,1.021]
[1742573609640,3.477,1959.9,1959.8,1.021]
[1742573610128,1.02091,1960.0,1959.9,1.02095]
[1742573610331,4.7619,1960.1,1959.8,1.02095]
[1742573610544,1.02089,1960.0,1959.9,1.2976]
[1742573610732,1.02095,1959.9,1959.8,1.02095]
[1742573611340,1.02095,1959.9,1959.7,1.2976]
[1742573611535,1.02095,1959.9,1959.8,1.021]
[1742573611938,1.021,1959.8,1959.7,1.2976]
[1742573612138,1.3043,1959.8,1959.7,1.02105]
[1742573612445,2.3253,1959.8,1959.7,1.02105]
[1742573612644,1.3043,1959.8,1959.7,1.02105]
[1742573612947,2.3253,1959.8,1959.7,1.02105]
[1742573613148,3.473,1960.0,1959.6,3.94973834]
[1742573613345,5.7982,1960.0,1959.9,1.02095]
[1742573613641,1.02097,1959.9,1959.8,1.02097]
[1742573613845,4.7773,1960.0,1959.9,1.02095]
[1742573613846,5.79621,1960.0,1959.9,1.02095]
[1742573614041,2.32521,1960.0,1959.9,1.02095]
[1742573614247,2.32521,1960.0,1959.8,1.2473]
[1742573614248,1.0209,1960.0,1959.8,3.79978]
[1742573614445,1.0209,1960.0,1959.9,1.02089]
[1742573615042,1.02095,1959.9,1959.8,1.2473]
[1742573615350,1.02099,1959.9,1959.7,3.2078]
[1742573615548,1.021,1959.8,1959.6,1.25735834]
[1742573615736,1.02105,1959.7,1959.6,1.25735834]
[1742573615939,1.02104,1959.8,1959.6,42.05735834]
[1742573616136,1.02105,1959.7,1959.6,42.05735834]
[1742573616344,1.02105,1959.7,1959.6,1.25735834]
[1742573616543,1.02105,1959.7,1959.6,0.00765834]
[1742573617148,2.40515,1959.7,1959.6,0.00765834]
[1742573619955,5.61295,1959.7,1959.6,0.00765834]
[1742573620459,2.40515,1959.7,1959.6,0.00765834]
[1742573621260,9.07195,1959.7,1959.6,0.00765834]
[1742573622474,5.86415,1959.7,1959.6,0.00765834]
[1742573623364,9.07195,1959.7,1959.6,0.00765834]
[1742573623760,1.02121,1959.4,1959.3,40.8]
[1742573624062,6.6658,1959.4,1959.1,1.02132]
[1742573624264,2.42248,1959.3,1959.2,1.02131]
[1742573624773,1.02131,1959.2,1959.1,1.02132]
[1742573625068,1.02131,1959.2,1959.1,1.02898834]
[1742573625253,1.4012,1959.3,1959.1,1.02898834]
[1742573625458,4.71939236,1959.4,1959.2,3.2078]
[1742573625661,2.28462236,1959.4,1959.3,1.02126]
[1742573626464,2.28462236,1959.4,1959.2,3.2078]
[1742573626465,1.02126,1959.3,1959.2,1.02127]
[1742573626765,1.02131,1959.2,1959.1,0.00765834]
[1742573626960,4.47831,1959.2,1959.1,0.00765834]
[1742573627468,1.02136,1959.1,1959.0,40.8]
[1742573627670,2.39096,1959.1,1959.0,40.8]
[1742573627862,3.92308,1959.1,1958.7,1.02153]
[1742573628061,1.3696,1959.1,1959.0,4.22921]
[1742573628263,1.3696,1959.1,1958.9,41.82142]
[1742573628563,1.02141,1959.0,1958.9,40.80765834]
[1742573628770,2.37331,1959.0,1958.9,40.80765834]
[1742573629164,3.74291,1959.0,1958.9,40.80765834]
[1742573632864,7.19391,1959.0,1958.9,0.00765834]
[1742573634967,1.02162,1958.6,1958.5,1.2364]
[1742573635274,2.55382,1958.8,1958.5,1.2364]
[1742573635275,3.451,1958.8,1958.5,1.2364]
[1742573635572,3.451,1958.8,1958.6,2.3926]
[1742573635573,4.47257,1958.8,1958.6,2.3926]
[1742573635770,4.47257,1958.8,1958.7,2.39257]
[1742573635973,3.74295,1959.0,1958.8,1.02147]
[1742573636164,3.74295,1959.0,1958.9,1.4093]
[1742573637974,3.74295,1959.0,1958.6,4.23703834]
[1742573638172,1.02152,1958.8,1958.7,1.4093]
[1742573639266,3.64322,1958.8,1958.7,1.4093]
[1742573639473,1.02157,1958.7,1958.6,0.00765834]
[1742573639674,2.38447,1958.7,1958.6,1.37365834]
[1742573640179,1.3629,1958.7,1958.6,2.39527834]
[1742573640370,1.02157,1958.7,1958.6,1.37365834]
[1742573640573,1.2588,1958.8,1958.7,1.02157]
[1742573640779,2.28032,1958.8,1958.7,1.02157]
[1742573641575,2.28032,1958.8,1958.7,2.38757]
[1742573641879,2.28032,1958.8,1958.7,1.366]
[1742573642382,3.63122,1958.8,1958.7,1.366]
[1742573643473,2.6097,1958.8,1958.7,2.38757]
[1742573643673,1.2588,1958.8,1958.7,2.38757]
[1742573644278,2.28032,1958.8,1958.7,1.366]
[1742573644579,3.63122,1958.8,1958.7,1.366]
[1742573647787,1.02157,1958.7,1958.6,0.00765834]
[1742573647986,1.02157,1958.7,1958.6,1.37825834]
[1742573648195,2.41377,1958.7,1958.6,1.37825834]
[1742573649984,1.3922,1958.7,1958.6,2.39987834]
[1742573650290,1.2588,1958.8,1958.6,5.60763834]
[1742573650490,1.2588,1958.8,1958.7,2.39217]